[Event "Live Chess"]
[Site "Chess.com"]
[Date "2023.05.20"]
[Round "-"]
[White "toxic_rabbit"]
[Black "McSlash1"]
[Result "1-0"]
[WhiteElo "2001"]
[BlackElo "2040"]
[TimeControl "300"]
[EndTime "14:26:07 PDT"]
[Termination "toxic_rabbit won by resignation"]

1. e4 {[%clk 0:04:58.6]} 1... c5 {[%clk 0:04:59.6]} 2. c3 {[%clk 0:04:57.7]}
2... d5 {[%clk 0:04:58]} 3. exd5 {[%clk 0:04:57]} 3... Qxd5 {[%clk 0:04:57.9]}
4. d4 {[%clk 0:04:56.9]} 4... cxd4 {[%clk 0:04:57.8]} 5. cxd4 {[%clk 0:04:56.8]}
5... Nf6 {[%clk 0:04:57.2]} 6. Nf3 {[%clk 0:04:56.3]} 6... Qd8 {[%clk
0:04:56.5]} 7. Nc3 {[%clk 0:04:55.9]} 7... Bf5 {[%clk 0:04:56.4]} 8. Bc4 {[%clk
0:04:55.1]} 8... e6 {[%clk 0:04:55.8]} 9. Qb3 {[%clk 0:04:54.7]} 9... Nbd7
{[%clk 0:04:55.5]} 10. Ne5 {[%clk 0:04:52.7]} 10... Be7 {[%clk 0:04:53.5]} 11.
h3 {[%clk 0:04:48.8]} 11... O-O {[%clk 0:04:52.7]} 12. g4 {[%clk 0:04:48]} 12...
Bg6 {[%clk 0:04:51]} 13. f4 {[%clk 0:04:41]} 13... Nb6 {[%clk 0:04:50.2]} 14.
Be3 {[%clk 0:04:39.2]} 14... Nxc4 {[%clk 0:04:46.5]} 15. Qxc4 {[%clk 0:04:38.3]}
15... Rc8 {[%clk 0:04:44.5]} 16. Qe2 {[%clk 0:04:35.8]} 16... Nd5 {[%clk
0:04:43.8]} 17. Nxd5 {[%clk 0:04:31.7]} 17... Qxd5 {[%clk 0:04:43.7]} 18. O-O
{[%clk 0:04:28]} 18... Rc2 {[%clk 0:04:37.2]} 19. Nxg6 {[%clk 0:04:22.5]} 19...
Rxe2 {[%clk 0:04:34.6]} 20. Nxe7+ {[%clk 0:04:21.4]} 20... Kh8 {[%clk
0:04:31.6]} 21. Nxd5 {[%clk 0:04:21.3]} 21... exd5 {[%clk 0:04:31]} 22. Bf2
{[%clk 0:04:20.8]} 22... Rc8 {[%clk 0:04:29.3]} 23. Rac1 {[%clk 0:04:19.6]}
23... Rec2 {[%clk 0:04:27.2]} 24. Rxc2 {[%clk 0:04:14.6]} 24... Rxc2 {[%clk
0:04:27.1]} 25. Re1 {[%clk 0:04:12.7]} 25... h6 {[%clk 0:04:26.7]} 26. Kg2
{[%clk 0:04:07.1]} 26... Rxb2 {[%clk 0:04:25.7]} 27. Re7 {[%clk 0:04:05.9]}
27... Kg8 {[%clk 0:04:23.2]} 28. Kg3 {[%clk 0:04:04.3]} 28... Rxa2 {[%clk
0:04:21.2]} 29. Rxb7 {[%clk 0:04:03.4]} 29... a5 {[%clk 0:04:19.6]} 30. f5
{[%clk 0:04:01.3]} 30... f6 {[%clk 0:04:18.3]} 31. Be1 {[%clk 0:04:00.2]} 31...
a4 {[%clk 0:04:17.5]} 32. Bb4 {[%clk 0:03:57.8]} 32... Rb2 {[%clk 0:04:14.6]}
33. Rb8+ {[%clk 0:03:56]} 33... Kh7 {[%clk 0:04:13.5]} 34. Bd6 {[%clk
0:03:55.9]} 34... a3 {[%clk 0:04:11.1]} 35. Ra8 {[%clk 0:03:52.4]} 35... a2
{[%clk 0:04:10.2]} 36. Ra7 {[%clk 0:03:49]} 36... Kg8 {[%clk 0:04:05.3]} 37. Kh4
{[%clk 0:03:47.6]} 37... Rd2 {[%clk 0:03:52.7]} 38. Kh5 {[%clk 0:03:44.8]} 38...
a1=Q {[%clk 0:03:41.1]} 39. Rxa1 {[%clk 0:03:42.3]} 39... Rxd4 {[%clk
0:03:39.9]} 40. Kg6 {[%clk 0:03:40.9]} 1-0

[Event "Live Chess"]
[Site "Chess.com"]
[Date "2023.05.20"]
[Round "-"]
[White "ViktorTheCoolBoy"]
[Black "raminguy"]
[Result "1-0"]
[WhiteElo "2511"]
[BlackElo "1962"]
[TimeControl "300"]
[EndTime "14:26:17 PDT"]
[Termination "ViktorTheCoolBoy won by resignation"]

1. e4 {[%clk 0:04:57.9]} 1... e5 {[%clk 0:04:58.9]} 2. Nf3 {[%clk 0:04:56.6]}
2... Nc6 {[%clk 0:04:57.3]} 3. d4 {[%clk 0:04:55]} 3... exd4 {[%clk 0:04:56.2]}
4. Nxd4 {[%clk 0:04:54.9]} 4... Qe7 {[%clk 0:04:55.1]} 5. Nc3 {[%clk 0:04:51.7]}
5... Qf6 {[%clk 0:04:52.4]} 6. Ndb5 {[%clk 0:04:49.3]} 6... Bc5 {[%clk
0:04:50.7]} 7. f4 {[%clk 0:04:41.6]} 7... Kd8 {[%clk 0:04:35.3]} 8. Nxc7 {[%clk
0:04:37]} 8... Bb4 {[%clk 0:04:30.4]} 9. Nd5 {[%clk 0:04:34.2]} 9... Bxc3+
{[%clk 0:04:28.8]} 10. Nxc3 {[%clk 0:04:32.5]} 10... Qd4 {[%clk 0:04:19.5]} 11.
Qxd4 {[%clk 0:04:28.8]} 11... Nxd4 {[%clk 0:04:18]} 12. Bd3 {[%clk 0:04:28.4]}
12... Nf6 {[%clk 0:04:14.9]} 13. Be3 {[%clk 0:04:27.1]} 13... Nc6 {[%clk
0:04:12.8]} 14. h3 {[%clk 0:04:25.3]} 14... Nb4 {[%clk 0:04:10.9]} 15. O-O-O
{[%clk 0:04:23.9]} 15... Nxd3+ {[%clk 0:04:09.6]} 16. Rxd3 {[%clk 0:04:23.8]}
16... Re8 {[%clk 0:04:06.4]} 17. e5 {[%clk 0:04:22.9]} 17... Nh5 {[%clk
0:04:04.9]} 18. g4 {[%clk 0:04:21.1]} 1-0

[Event "Live Chess"]
[Site "Chess.com"]
[Date "2023.05.20"]
[Round "-"]
[White "jk0110"]
[Black "grillage"]
[Result "0-1"]
[WhiteElo "1101"]
[BlackElo "1846"]
[TimeControl "300"]
[EndTime "14:26:28 PDT"]
[Termination "grillage won on time"]

1. e4 {[%clk 0:04:57.8]} 1... d5 {[%clk 0:04:58.4]} 2. d4 {[%clk 0:04:55.7]}
2... dxe4 {[%clk 0:04:54.8]} 3. Nc3 {[%clk 0:04:54.9]} 3... e5 {[%clk
0:04:53.1]} 4. Nxe4 {[%clk 0:04:33.8]} 4... exd4 {[%clk 0:04:41.3]} 5. Nf3
{[%clk 0:04:31.1]} 5... Bg4 {[%clk 0:04:36.1]} 6. Bc4 {[%clk 0:04:20.7]} 6...
Bb4+ {[%clk 0:04:16.4]} 7. c3 {[%clk 0:04:17.2]} 7... dxc3 {[%clk 0:04:12.7]} 8.
Qxd8+ {[%clk 0:04:03.2]} 8... Kxd8 {[%clk 0:04:11.2]} 9. bxc3 {[%clk 0:04:01.6]}
9... Ba5 {[%clk 0:04:07.3]} 10. Nfg5 {[%clk 0:03:55.1]} 10... Nh6 {[%clk
0:03:49.9]} 11. O-O {[%clk 0:03:46.3]} 11... f6 {[%clk 0:03:30.3]} 12. Ne6+
{[%clk 0:03:43.6]} 12... Bxe6 {[%clk 0:03:28]} 13. Bxe6 {[%clk 0:03:43.5]} 13...
Nc6 {[%clk 0:03:16.1]} 14. Bxh6 {[%clk 0:03:26.7]} 14... gxh6 {[%clk 0:03:14.1]}
15. Nxf6 {[%clk 0:03:26.2]} 15... Ke7 {[%clk 0:03:12.6]} 16. Rfe1 {[%clk
0:03:22.9]} 16... Kxf6 {[%clk 0:03:11.5]} 17. Rad1 {[%clk 0:03:02.3]} 17... Bxc3
{[%clk 0:03:08.4]} 18. Re3 {[%clk 0:03:01.8]} 18... Bd4 {[%clk 0:03:05.9]} 19.
Re2 {[%clk 0:02:52.5]} 19... Rhe8 {[%clk 0:03:02.6]} 20. g4 {[%clk 0:02:30.6]}
20... Rxe6 {[%clk 0:02:59.9]} 21. Rxe6+ {[%clk 0:02:29.1]} 21... Kxe6 {[%clk
0:02:59]} 22. Kg2 {[%clk 0:02:24.4]} 22... Rf8 {[%clk 0:02:57.6]} 23. Rf1 {[%clk
0:02:21.1]} 23... Ne5 {[%clk 0:02:54.5]} 24. h3 {[%clk 0:02:17.9]} 24... Bb6
{[%clk 0:02:52.6]} 25. f4 {[%clk 0:02:15.8]} 25... Nd3 {[%clk 0:02:48.7]} 26.
Kg3 {[%clk 0:01:56.6]} 26... c5 {[%clk 0:02:45.4]} 27. Rf3 {[%clk 0:01:49.2]}
27... c4 {[%clk 0:02:42.8]} 28. f5+ {[%clk 0:01:45.6]} 28... Kf6 {[%clk
0:02:38.2]} 29. a4 {[%clk 0:01:37.1]} 29... Re8 {[%clk 0:02:35.6]} 30. Rf1
{[%clk 0:01:28]} 30... Re3+ {[%clk 0:02:23.4]} 31. Kh4 {[%clk 0:01:17.7]} 31...
Ne5 {[%clk 0:02:14.8]} 32. Rd1 {[%clk 0:01:07.8]} 32... Nf3+ {[%clk 0:02:07.6]}
33. Kh5 {[%clk 0:00:53.2]} 33... Nd4 {[%clk 0:01:54.1]} 34. h4 {[%clk
0:00:44.5]} 34... Kg7 {[%clk 0:01:44.2]} 35. Rf1 {[%clk 0:00:32.9]} 35... Rf3
{[%clk 0:01:40.1]} 36. Re1 {[%clk 0:00:30.2]} 36... Nxf5 {[%clk 0:01:26.8]} 37.
gxf5 {[%clk 0:00:22.9]} 37... Rxf5+ {[%clk 0:01:25.8]} 38. Kg4 {[%clk
0:00:18.5]} 38... Rf7 {[%clk 0:01:23]} 39. Rc1 {[%clk 0:00:12.7]} 39... Rc7
{[%clk 0:01:21.9]} 40. Rc3 {[%clk 0:00:11.2]} 40... Bd4 {[%clk 0:01:20.3]} 41.
Ra3 {[%clk 0:00:05]} 41... c3 {[%clk 0:01:18.6]} 42. Ra2 {[%clk 0:00:02.8]}
42... c2 {[%clk 0:01:17.3]} 0-1

[Event "Live Chess"]
[Site "Chess.com"]
[Date "2023.05.20"]
[Round "-"]
[White "CameronM1234"]
[Black "Duke_of_Bebington"]
[Result "0-1"]
[WhiteElo "1129"]
[BlackElo "1581"]
[TimeControl "300"]
[EndTime "14:26:53 PDT"]
[Termination "Duke_of_Bebington won on time"]

1. e4 {[%clk 0:04:58.6]} 1... e5 {[%clk 0:04:59.1]} 2. Nf3 {[%clk 0:04:57.5]}
2... Nf6 {[%clk 0:04:58.4]} 3. d3 {[%clk 0:04:56.2]} 3... Nc6 {[%clk 0:04:55.3]}
4. g3 {[%clk 0:04:55]} 4... d5 {[%clk 0:04:54.3]} 5. exd5 {[%clk 0:04:53.5]}
5... Nxd5 {[%clk 0:04:54.2]} 6. Bg2 {[%clk 0:04:52.1]} 6... Bc5 {[%clk
0:04:52.9]} 7. O-O {[%clk 0:04:43.9]} 7... O-O {[%clk 0:04:51]} 8. c3 {[%clk
0:04:42]} 8... Bg4 {[%clk 0:04:42]} 9. h3 {[%clk 0:04:31.4]} 9... Bh5 {[%clk
0:04:36.4]} 10. a4 {[%clk 0:04:21]} 10... a5 {[%clk 0:04:34.1]} 11. Nbd2 {[%clk
0:04:04.4]} 11... f5 {[%clk 0:04:16.2]} 12. Qe1 {[%clk 0:03:41.6]} 12... Qf6
{[%clk 0:04:05.2]} 13. Nb3 {[%clk 0:03:26.5]} 13... Bd6 {[%clk 0:03:55.6]} 14.
Bg5 {[%clk 0:03:17.4]} 14... Qe6 {[%clk 0:03:43.6]} 15. d4 {[%clk 0:02:50]}
15... e4 {[%clk 0:03:20.8]} 16. Nfd2 {[%clk 0:02:26.6]} 16... h6 {[%clk
0:03:11.3]} 17. Be3 {[%clk 0:01:43.1]} 17... f4 {[%clk 0:02:55.6]} 18. gxf4
{[%clk 0:01:29.1]} 18... Bxf4 {[%clk 0:02:22.9]} 19. Nxe4 {[%clk 0:00:44.2]}
19... Bxe3 {[%clk 0:02:10.8]} 20. fxe3 {[%clk 0:00:24.8]} 20... Qg6 {[%clk
0:01:51.6]} 21. Qg3 {[%clk 0:00:13.7]} 21... Qxg3 {[%clk 0:01:45]} 22. Nxg3
{[%clk 0:00:13.6]} 22... Nxe3 {[%clk 0:01:38.4]} 23. Nxh5 {[%clk 0:00:12.1]}
23... Rxf1+ {[%clk 0:01:32.4]} 24. Rxf1 {[%clk 0:00:11.1]} 24... Nxf1 {[%clk
0:01:29.8]} 25. Kxf1 {[%clk 0:00:11]} 25... Rf8+ {[%clk 0:01:27.7]} 26. Kg1
{[%clk 0:00:10.7]} 26... Ne7 {[%clk 0:01:24.8]} 27. Ng3 {[%clk 0:00:09.8]} 27...
b6 {[%clk 0:01:21.4]} 28. Ne4 {[%clk 0:00:08.9]} 28... Ng6 {[%clk 0:01:18.7]}
29. Nbd2 {[%clk 0:00:07.9]} 29... Nf4 {[%clk 0:01:12]} 30. Nc4 {[%clk 0:00:05]}
30... Nd3 {[%clk 0:01:09.4]} 31. Ne5 {[%clk 0:00:02.5]} 31... Nxb2 {[%clk
0:01:01.7]} 32. Nd7 {[%clk 0:00:00.2]} 32... Rd8 {[%clk 0:00:59.1]} 33. Ne5
{[%clk 0:00:00.1]} 33... Nxa4 {[%clk 0:00:56.4]} 0-1

[Event "Live Chess"]
[Site "Chess.com"]
[Date "2023.05.20"]
[Round "-"]
[White "RamsayFlayer"]
[Black "Wild_Tiger"]
[Result "1-0"]
[WhiteElo "1989"]
[BlackElo "1072"]
[TimeControl "300"]
[EndTime "14:26:55 PDT"]
[Termination "RamsayFlayer won by checkmate"]

1. e4 {[%clk 0:04:58.3]} 1... Nc6 {[%clk 0:04:56.8]} 2. d4 {[%clk 0:04:56.5]}
2... e5 {[%clk 0:04:52.7]} 3. d5 {[%clk 0:04:50.3]} 3... Nd4 {[%clk 0:04:51.5]}
4. Nf3 {[%clk 0:04:44.5]} 4... Nxf3+ {[%clk 0:04:48.7]} 5. Qxf3 {[%clk
0:04:44.2]} 5... Nf6 {[%clk 0:04:45.4]} 6. Nc3 {[%clk 0:04:40.7]} 6... Bb4
{[%clk 0:04:43.4]} 7. Bd2 {[%clk 0:04:38.3]} 7... O-O {[%clk 0:04:37.9]} 8. a3
{[%clk 0:04:34.9]} 8... Ba5 {[%clk 0:04:36.1]} 9. Bg5 {[%clk 0:04:24.4]} 9... h6
{[%clk 0:04:29.3]} 10. Bxf6 {[%clk 0:04:21.4]} 10... gxf6 {[%clk 0:04:26.1]} 11.
Qh5 {[%clk 0:04:07.1]} 11... Kh7 {[%clk 0:04:11.4]} 12. Be2 {[%clk 0:04:00.5]}
12... d6 {[%clk 0:04:05.3]} 13. Bg4 {[%clk 0:03:57.6]} 13... Bxg4 {[%clk
0:03:57.5]} 14. Qxg4 {[%clk 0:03:57.5]} 14... Bxc3+ {[%clk 0:03:53]} 15. bxc3
{[%clk 0:03:55.5]} 15... c6 {[%clk 0:03:52]} 16. Qf5+ {[%clk 0:03:50.4]} 16...
Kg7 {[%clk 0:03:49]} 17. O-O {[%clk 0:03:46.6]} 17... Rh8 {[%clk 0:03:40.8]} 18.
Rfe1 {[%clk 0:03:40.5]} 18... Kf8 {[%clk 0:03:33.7]} 19. Re3 {[%clk 0:03:39.3]}
19... Ke7 {[%clk 0:03:32.9]} 20. Rg3 {[%clk 0:03:33.6]} 20... h5 {[%clk
0:03:29.1]} 21. Rf3 {[%clk 0:03:32.1]} 21... h4 {[%clk 0:03:26.3]} 22. Qxf6+
{[%clk 0:03:30.5]} 22... Kd7 {[%clk 0:03:19.5]} 23. Qxf7+ {[%clk 0:03:29.4]}
23... Kc8 {[%clk 0:03:15.5]} 24. Qe6+ {[%clk 0:03:23.2]} 24... Kc7 {[%clk
0:03:13.6]} 25. Rf7+ {[%clk 0:03:21]} 25... Kb6 {[%clk 0:03:12.9]} 26. Rb1+
{[%clk 0:03:19.4]} 26... Kc5 {[%clk 0:03:03.7]} 27. Rfxb7 {[%clk 0:03:14.8]}
27... Re8 {[%clk 0:02:41.1]} 28. Qf7 {[%clk 0:03:05.1]} 28... Rf8 {[%clk
0:02:36.2]} 29. Qc7 {[%clk 0:02:56.5]} 29... Qxc7 {[%clk 0:02:30.1]} 30. Rxc7
{[%clk 0:02:50.3]} 30... Rab8 {[%clk 0:02:27.6]} 31. Rxc6# {[%clk 0:02:48.5]}
1-0

[Event "Live Chess"]
[Site "Chess.com"]
[Date "2023.05.20"]
[Round "-"]
[White "WilliamofOrange16th"]
[Black "Conradical12"]
[Result "1-0"]
[WhiteElo "1838"]
[BlackElo "1579"]
[TimeControl "300"]
[EndTime "14:26:57 PDT"]
[Termination "WilliamofOrange16th won on time"]

1. b3 {[%clk 0:04:56.6]} 1... d5 {[%clk 0:04:58.5]} 2. Bb2 {[%clk 0:04:55.9]}
2... Nc6 {[%clk 0:04:56.8]} 3. e3 {[%clk 0:04:53.5]} 3... e5 {[%clk 0:04:56]} 4.
Bb5 {[%clk 0:04:49.9]} 4... Ne7 {[%clk 0:04:53.3]} 5. Bxe5 {[%clk 0:04:38.5]}
5... a6 {[%clk 0:04:49.9]} 6. Bxc6+ {[%clk 0:04:33.6]} 6... Nxc6 {[%clk
0:04:48.1]} 7. Bg3 {[%clk 0:04:32.8]} 7... Bb4 {[%clk 0:04:41.4]} 8. c3 {[%clk
0:04:30.5]} 8... Qf6 {[%clk 0:04:40.5]} 9. a3 {[%clk 0:04:26.3]} 9... Bd6 {[%clk
0:04:36.2]} 10. Bxd6 {[%clk 0:04:24.5]} 10... Qxd6 {[%clk 0:04:34.9]} 11. Nf3
{[%clk 0:04:21.5]} 11... O-O {[%clk 0:04:33.7]} 12. h3 {[%clk 0:04:08.5]} 12...
Ne5 {[%clk 0:04:29.1]} 13. d4 {[%clk 0:04:05]} 13... Nd7 {[%clk 0:04:15.2]} 14.
O-O {[%clk 0:04:03]} 14... Qg6 {[%clk 0:04:14.4]} 15. Kh1 {[%clk 0:03:52.6]}
15... Nf6 {[%clk 0:04:11.5]} 16. Nbd2 {[%clk 0:03:48.8]} 16... Qh6 {[%clk
0:03:57.8]} 17. Ng1 {[%clk 0:03:41.9]} 17... g5 {[%clk 0:03:45.6]} 18. f3 {[%clk
0:03:20.5]} 18... Kh8 {[%clk 0:03:27.9]} 19. Qe1 {[%clk 0:03:18.2]} 19... Rg8
{[%clk 0:03:09.2]} 20. g4 {[%clk 0:02:37.5]} 20... Re8 {[%clk 0:02:52.9]} 21.
Qf2 {[%clk 0:02:34]} 21... Bxg4 {[%clk 0:02:47.3]} 22. fxg4 {[%clk 0:02:32.4]}
22... Nxg4 {[%clk 0:02:46.1]} 23. Qg3 {[%clk 0:02:28.5]} 23... Nxe3 {[%clk
0:02:37.1]} 24. Rxf7 {[%clk 0:02:25.3]} 24... g4 {[%clk 0:02:03.6]} 25. Rf4
{[%clk 0:02:00.8]} 25... Re7 {[%clk 0:01:14]} 26. Nf1 {[%clk 0:01:56.1]} 26...
Rae8 {[%clk 0:01:04.9]} 27. h4 {[%clk 0:01:50.3]} 27... Qe6 {[%clk 0:00:29.6]}
28. Re1 {[%clk 0:01:39.2]} 28... Nf5 {[%clk 0:00:24.5]} 29. Qxg4 {[%clk
0:01:25.6]} 29... Qxe1 {[%clk 0:00:18.8]} 30. Qxf5 {[%clk 0:01:23.9]} 30... Qe6
{[%clk 0:00:18.4]} 31. Qh5 {[%clk 0:01:04.1]} 31... Rg8 {[%clk 0:00:15.7]} 32.
Nf3 {[%clk 0:00:56.6]} 32... Reg7 {[%clk 0:00:14.5]} 33. Ng5 {[%clk 0:00:50.2]}
33... Qd7 {[%clk 0:00:07.9]} 34. Kh2 {[%clk 0:00:45.2]} 34... Qe7 {[%clk
0:00:05.6]} 35. Ng3 {[%clk 0:00:43.2]} 35... h6 {[%clk 0:00:04.6]} 36. Qxh6+
{[%clk 0:00:38.4]} 36... Rh7 {[%clk 0:00:03.7]} 37. Nxh7 {[%clk 0:00:36.9]}
37... Qxh7 {[%clk 0:00:03.4]} 38. Qxh7+ {[%clk 0:00:36]} 38... Kxh7 {[%clk
0:00:03.3]} 39. Rf7+ {[%clk 0:00:35.1]} 39... Kg6 {[%clk 0:00:02.2]} 40. Rxc7
{[%clk 0:00:34.1]} 1-0

[Event "Live Chess"]
[Site "Chess.com"]
[Date "2023.05.20"]
[Round "-"]
[White "nigelst"]
[Black "chessfiction"]
[Result "1-0"]
[WhiteElo "1834"]
[BlackElo "2340"]
[TimeControl "300"]
[EndTime "14:27:01 PDT"]
[Termination "nigelst won by resignation"]

1. e4 {[%clk 0:04:58.8]} 1... d5 {[%clk 0:04:56.1]} 2. exd5 {[%clk 0:04:56.8]}
2... c6 {[%clk 0:04:55.5]} 3. d4 {[%clk 0:04:53.5]} 3... Nf6 {[%clk 0:04:53.8]}
4. Nf3 {[%clk 0:04:52.8]} 4... cxd5 {[%clk 0:04:52.7]} 5. Bd3 {[%clk 0:04:50]}
5... Nc6 {[%clk 0:04:52.6]} 6. O-O {[%clk 0:04:46.8]} 6... Bg4 {[%clk
0:04:50.2]} 7. c3 {[%clk 0:04:42.1]} 7... Qc7 {[%clk 0:04:48.8]} 8. Bg5 {[%clk
0:04:40.1]} 8... O-O-O {[%clk 0:04:47.7]} 9. Nbd2 {[%clk 0:04:37.5]} 9... e5
{[%clk 0:04:46.4]} 10. dxe5 {[%clk 0:04:35.8]} 10... Nxe5 {[%clk 0:04:46.3]} 11.
Be2 {[%clk 0:04:33.9]} 11... Ng6 {[%clk 0:04:42.7]} 12. Re1 {[%clk 0:04:27.9]}
12... Bd6 {[%clk 0:04:41.6]} 13. Qa4 {[%clk 0:04:24.7]} 13... Bxf3 {[%clk
0:04:31]} 14. Nxf3 {[%clk 0:04:17.5]} 14... Kb8 {[%clk 0:04:29.5]} 15. Be3
{[%clk 0:04:15]} 15... b6 {[%clk 0:04:26.6]} 16. Nd4 {[%clk 0:04:08.1]} 16...
Bxh2+ {[%clk 0:04:23.6]} 17. Kh1 {[%clk 0:04:01]} 17... Bf4 {[%clk 0:04:13.9]}
18. Nc6+ {[%clk 0:03:54.6]} 18... Ka8 {[%clk 0:04:11.5]} 19. Nxd8 {[%clk
0:03:53.3]} 19... Rxd8 {[%clk 0:04:10.4]} 20. Bxf4 {[%clk 0:03:44.7]} 20... Nxf4
{[%clk 0:04:07.9]} 21. Bf3 {[%clk 0:03:39]} 21... Nd3 {[%clk 0:04:01.1]} 22. Re2
{[%clk 0:03:27.4]} 22... Nc5 {[%clk 0:03:40.9]} 23. Qd4 {[%clk 0:03:20.8]} 23...
Nfe4 {[%clk 0:03:38.9]} 24. Rd1 {[%clk 0:03:06.6]} 24... Qf4 {[%clk 0:03:34.4]}
25. Bxe4 {[%clk 0:02:52]} 25... Qh4+ {[%clk 0:03:30.9]} 26. Kg1 {[%clk
0:02:50.2]} 26... Nxe4 {[%clk 0:03:25.6]} 27. Rxe4 {[%clk 0:02:45.4]} 27... Qh5
{[%clk 0:03:23.4]} 28. Re5 {[%clk 0:02:30.1]} 28... Qg6 {[%clk 0:03:18]} 29.
Rxd5 {[%clk 0:02:25.1]} 1-0

[Event "Live Chess"]
[Site "Chess.com"]
[Date "2023.05.20"]
[Round "-"]
[White "Richardallis"]
[Black "gregor1903"]
[Result "1-0"]
[WhiteElo "1903"]
[BlackElo "1565"]
[TimeControl "300"]
[EndTime "14:27:08 PDT"]
[Termination "Richardallis won by resignation"]

1. d4 {[%clk 0:04:58.7]} 1... Nf6 {[%clk 0:04:58]} 2. Nf3 {[%clk 0:04:58.1]}
2... g6 {[%clk 0:04:48.2]} 3. Bg5 {[%clk 0:04:57.4]} 3... Ne4 {[%clk 0:04:44.9]}
4. Bf4 {[%clk 0:04:55.3]} 4... Bg7 {[%clk 0:04:42.7]} 5. Nbd2 {[%clk 0:04:54.8]}
5... Nxd2 {[%clk 0:04:36.9]} 6. Qxd2 {[%clk 0:04:53.6]} 6... d5 {[%clk
0:04:30.8]} 7. c3 {[%clk 0:04:51.3]} 7... Nc6 {[%clk 0:04:20.1]} 8. Bh6 {[%clk
0:04:48.3]} 8... Bf6 {[%clk 0:04:15.6]} 9. h4 {[%clk 0:04:46.8]} 9... Be6 {[%clk
0:04:07.3]} 10. b4 {[%clk 0:04:43.4]} 10... a6 {[%clk 0:04:04.1]} 11. a4 {[%clk
0:04:41.6]} 11... Qd7 {[%clk 0:04:00]} 12. Bg5 {[%clk 0:04:40.1]} 12... Bg7
{[%clk 0:03:53.7]} 13. h5 {[%clk 0:04:33.6]} 13... h6 {[%clk 0:03:42.7]} 14. Bf4
{[%clk 0:04:32.3]} 14... g5 {[%clk 0:03:40.5]} 15. Bg3 {[%clk 0:04:31.3]} 15...
O-O {[%clk 0:03:26.5]} 16. Nxg5 {[%clk 0:04:27.4]} 16... hxg5 {[%clk 0:03:23.6]}
17. Qxg5 {[%clk 0:04:25.9]} 17... f6 {[%clk 0:03:11.2]} 18. Qe3 {[%clk
0:04:22.8]} 18... Kh7 {[%clk 0:02:57]} 19. h6 {[%clk 0:04:21.5]} 19... Bh8
{[%clk 0:02:53.1]} 20. Qd3+ {[%clk 0:04:11.2]} 20... Bf5 {[%clk 0:02:51]} 21.
Qd2 {[%clk 0:04:09.8]} 21... Rg8 {[%clk 0:02:44.4]} 22. e3 {[%clk 0:04:08.6]}
22... Rg6 {[%clk 0:02:30.3]} 23. Bd3 {[%clk 0:04:06.7]} 23... Rxh6 {[%clk
0:02:23.8]} 24. Rxh6+ {[%clk 0:04:04.8]} 24... Kxh6 {[%clk 0:02:20.8]} 25. Bxf5
{[%clk 0:04:03]} 25... Qxf5 {[%clk 0:02:14.1]} 26. Bxc7 {[%clk 0:04:02.2]} 26...
Rg8 {[%clk 0:01:55.7]} 27. e4+ {[%clk 0:03:56.9]} 27... Qg5 {[%clk 0:01:54]} 28.
Bf4 {[%clk 0:03:55.5]} 1-0

[Event "Live Chess"]
[Site "Chess.com"]
[Date "2023.05.20"]
[Round "-"]
[White "BostonStrangler"]
[Black "MarkLim1"]
[Result "1-0"]
[WhiteElo "2055"]
[BlackElo "1663"]
[TimeControl "300"]
[EndTime "14:27:08 PDT"]
[Termination "BostonStrangler won by resignation"]

1. Nf3 {[%clk 0:04:57.5]} 1... Nf6 {[%clk 0:04:58.8]} 2. g3 {[%clk 0:04:56.4]}
2... d5 {[%clk 0:04:57.8]} 3. Bg2 {[%clk 0:04:55.8]} 3... e6 {[%clk 0:04:57.1]}
4. O-O {[%clk 0:04:54.9]} 4... Be7 {[%clk 0:04:56.6]} 5. d4 {[%clk 0:04:53.4]}
5... O-O {[%clk 0:04:55.9]} 6. c4 {[%clk 0:04:52.5]} 6... c6 {[%clk 0:04:54.2]}
7. Nc3 {[%clk 0:04:49.6]} 7... b6 {[%clk 0:04:53.2]} 8. Qc2 {[%clk 0:04:47.8]}
8... Ba6 {[%clk 0:04:50.8]} 9. cxd5 {[%clk 0:04:42.2]} 9... c5 {[%clk
0:04:49.8]} 10. dxc5 {[%clk 0:04:37.1]} 10... exd5 {[%clk 0:04:47.8]} 11. cxb6
{[%clk 0:04:35.2]} 11... axb6 {[%clk 0:04:44.1]} 12. Be3 {[%clk 0:04:33.3]}
12... Nc6 {[%clk 0:04:41.9]} 13. Nd4 {[%clk 0:04:30.9]} 13... Nxd4 {[%clk
0:04:40.3]} 14. Bxd4 {[%clk 0:04:29.5]} 14... Rc8 {[%clk 0:04:38.9]} 15. Qd2
{[%clk 0:04:26.5]} 15... Bb4 {[%clk 0:04:34.7]} 16. a3 {[%clk 0:04:24.4]} 16...
Bc5 {[%clk 0:04:32.4]} 17. Rfd1 {[%clk 0:04:16.1]} 17... Re8 {[%clk 0:04:30.3]}
18. e3 {[%clk 0:04:14.3]} 18... Ne4 {[%clk 0:04:20.2]} 19. Nxe4 {[%clk
0:04:04.9]} 19... dxe4 {[%clk 0:04:18.5]} 20. b4 {[%clk 0:04:02.7]} 20... Bxd4
{[%clk 0:04:17.2]} 21. Qxd4 {[%clk 0:04:01.7]} 21... Qxd4 {[%clk 0:04:13.3]} 22.
Rxd4 {[%clk 0:04:01.6]} 22... Rc2 {[%clk 0:04:12.2]} 23. Rxe4 {[%clk 0:03:56.2]}
23... Rec8 {[%clk 0:04:09.5]} 24. h4 {[%clk 0:03:47.1]} 24... Rd2 {[%clk
0:04:01.2]} 25. Rd4 {[%clk 0:03:42.2]} 25... Rcc2 {[%clk 0:03:50.2]} 26. Rd1
{[%clk 0:03:21.3]} 26... Rxd1+ {[%clk 0:03:41.6]} 27. Rxd1 {[%clk 0:03:19.7]}
27... Kf8 {[%clk 0:03:41.4]} 28. Rd6 {[%clk 0:03:10.2]} 28... Ra2 {[%clk
0:03:39]} 29. Rxb6 {[%clk 0:03:08.5]} 29... Rxa3 {[%clk 0:03:37.9]} 30. b5
{[%clk 0:02:58.3]} 1-0